[Event "Titled Tuesday Blitz April 26 Late 2022"]
[White "Grischuk, Alexander"]
[Black "Moussard, Jules"]
[WhiteFideId "4126025"]
[BlackFideId "642908"]
[WhiteElo "2762"]
[BlackElo "2589"]
[Result "1-0"]
[Round "08"]
[TimeControl "180+1"]
[Date "2022.04.26"]
[WhiteClock "0:00:11"]
[BlackClock "0:00:03"]

1. d4 {[%clk 0:02:16]}  d5 {[%clk 0:02:16]} 2. Nf3 {[%clk 0:02:15]}  Nf6 {[%clk 0:02:16]} 3. Bf4 {[%clk 0:02:15]}  e6 {[%clk 0:02:15]} 4. Nbd2 {[%clk 0:02:15]}  c5 {[%clk 0:02:15]} 5. e3 {[%clk 0:02:15]}  Qb6 {[%clk 0:02:14]} 6. Rb1 {[%clk 0:02:15]}  Nc6 {[%clk 0:02:10]} 7. c3 {[%clk 0:02:14]}  Be7 {[%clk 0:01:54]} 8. Bd3 {[%clk 0:02:14]}  O-O {[%clk 0:01:53]} 9. Ne5 {[%clk 0:02:13]}  Bd7 {[%clk 0:01:12]} 10. Qf3 {[%clk 0:02:00]}  Be8 {[%clk 0:01:10]} 11. Qh3 {[%clk 0:01:58]}  cxd4 {[%clk 0:01:02]} 12. exd4 {[%clk 0:01:58]}  Nxe5 {[%clk 0:00:38]} 13. dxe5 {[%clk 0:01:57]}  Ne4 {[%clk 0:00:38]} 14. Nxe4 {[%clk 0:01:57]}  dxe4 {[%clk 0:00:38]} 15. Bxe4 {[%clk 0:01:58]}  g6 {[%clk 0:00:37]} 16. Bh6 {[%clk 0:01:44]}  Bb5 {[%clk 0:00:26]} 17. Bxf8 {[%clk 0:01:45]}  Bxf8 {[%clk 0:00:26]} 18. Bd3 {[%clk 0:01:45]}  Rd8 {[%clk 0:00:26]} 19. Rd1 {[%clk 0:01:09]}  Bxd3 {[%clk 0:00:25]} 20. Rxd3 {[%clk 0:01:09]}  Rxd3 {[%clk 0:00:26]} 21. Qxd3 {[%clk 0:01:09]}  Qxb2 {[%clk 0:00:27]} 22. O-O {[%clk 0:01:08]}  Qxa2 {[%clk 0:00:27]} 23. g3 {[%clk 0:01:01]}  Qa5 {[%clk 0:00:25]} 24. Qe4 {[%clk 0:01:00]}  Qxc3 {[%clk 0:00:24]} 25. Rd1 {[%clk 0:00:59]}  a5 {[%clk 0:00:19]} 26. Rd7 {[%clk 0:00:44]}  Qc1+ {[%clk 0:00:06]} 27. Kg2 {[%clk 0:00:44]}  Qc6 {[%clk 0:00:07]} 28. Qxc6 {[%clk 0:00:44]}  bxc6 {[%clk 0:00:08]} 29. Rc7 {[%clk 0:00:43]}  a4 {[%clk 0:00:08]} 30. Rxc6 {[%clk 0:00:43]}  a3 {[%clk 0:00:09]} 31. Ra6 {[%clk 0:00:43]}  g5 {[%clk 0:00:07]} 32. f4 {[%clk 0:00:20]}  gxf4 {[%clk 0:00:07]} 33. gxf4 {[%clk 0:00:21]}  Kg7 {[%clk 0:00:07]} 34. Kf3 {[%clk 0:00:20]}  h5 {[%clk 0:00:07]} 35. Ke4 {[%clk 0:00:20]}  Bb4 {[%clk 0:00:06]} 36. h3 {[%clk 0:00:20]}  Kg6 {[%clk 0:00:02]} 37. f5+ {[%clk 0:00:20]}  Kg5 {[%clk 0:00:02]} 38. fxe6 {[%clk 0:00:20]}  fxe6 {[%clk 0:00:03]} 39. Rxe6 {[%clk 0:00:20]}  Kh4 {[%clk 0:00:02]} 40. Rb6 {[%clk 0:00:18]}  Bc5 {[%clk 0:00:02]} 41. Ra6 {[%clk 0:00:16]}  Kxh3 {[%clk 0:00:02]} 42. e6 {[%clk 0:00:16]}  Kg2 {[%clk 0:00:01]} 43. Ra5 {[%clk 0:00:16]}  Be7 {[%clk 0:00:02]} 44. Rxh5 {[%clk 0:00:15]}  Kf2 {[%clk 0:00:02]} 45. Ra5 {[%clk 0:00:14]}  Ke2 {[%clk 0:00:03]} 46. Ra7 {[%clk 0:00:12]}  Bc5 {[%clk 0:00:02]} 47. e7 {[%clk 0:00:10]}  Bxe7 {[%clk 0:00:02]} 48. Rxe7 {[%clk 0:00:11]}  Kd2 {[%clk 0:00:03]} 49. Ra7 {[%clk 0:00:11]}  Kc3 {[%clk 0:00:03]} 50. Rxa3+ {[%clk 0:00:11]} 1-0


[Site "https://www.chess.com"]

[Event "Titled Tuesday Blitz April 26 Late 2022"]
[White "Harish, Neeraj"]
[Black "Leschinsky, Gary"]
[WhiteFideId "30958130"]
[BlackFideId "30951321"]
[WhiteElo "1574"]
[BlackElo "1782"]
[Result "0-1"]
[Round "08"]
[TimeControl "180+1"]
[Date "2022.04.26"]
[WhiteClock "0:01:02"]
[BlackClock "0:01:58"]

1. e4 {[%clk 0:03:00]}  c5 {[%clk 0:03:00]} 2. Nf3 {[%clk 0:03:00]}  e6 {[%clk 0:03:00]} 3. d4 {[%clk 0:03:01]}  cxd4 {[%clk 0:03:01]} 4. Nxd4 {[%clk 0:03:01]}  a6 {[%clk 0:03:02]} 5. Bd3 {[%clk 0:03:00]}  Bc5 {[%clk 0:03:02]} 6. Nb3 {[%clk 0:02:59]}  Ba7 {[%clk 0:03:02]} 7. Nc3 {[%clk 0:02:51]}  Nc6 {[%clk 0:03:00]} 8. Qe2 {[%clk 0:02:33]}  b5 {[%clk 0:02:45]} 9. Bf4 {[%clk 0:02:18]}  e5 {[%clk 0:02:29]} 10. Be3 {[%clk 0:02:13]}  Nf6 {[%clk 0:02:28]} 11. O-O-O {[%clk 0:02:08]}  O-O {[%clk 0:02:27]} 12. Bg5 {[%clk 0:02:02]}  h6 {[%clk 0:02:18]} 13. Bh4 {[%clk 0:01:58]}  Nd4 {[%clk 0:02:18]} 14. Nxd4 {[%clk 0:01:54]}  Bxd4 {[%clk 0:02:19]} 15. Nd5 {[%clk 0:01:54]}  g5 {[%clk 0:02:16]} 16. Qf3 {[%clk 0:01:35]}  Nxd5 {[%clk 0:02:05]} 17. exd5 {[%clk 0:01:34]}  gxh4 {[%clk 0:02:06]} 18. d6 {[%clk 0:01:27]}  Rb8 {[%clk 0:02:01]} 19. Kb1 {[%clk 0:01:20]}  Bb7 {[%clk 0:01:59]} 20. Qf5 {[%clk 0:01:18]}  e4 {[%clk 0:01:57]} 21. Bxe4 {[%clk 0:01:07]}  Bxe4 {[%clk 0:01:58]} 22. Qxe4 {[%clk 0:01:07]}  Bg7 {[%clk 0:01:58]} 23. g3 {[%clk 0:01:06]}  Qf6 {[%clk 0:01:58]} 24. c3 {[%clk 0:01:02]}  b4 {[%clk 0:01:58]} 0-1


[Site "https://www.chess.com"]

[Event "Titled Tuesday Blitz April 26 Late 2022"]
[White "Hnydiuk, Aleksander"]
[Black "Shirov, Alexei"]
[WhiteFideId "1109057"]
[BlackFideId "2209390"]
[WhiteElo "2374"]
[BlackElo "2678"]
[Result "1/2-1/2"]
[Round "08"]
[TimeControl "180+1"]
[Date "2022.04.26"]
[WhiteClock "0:00:08"]
[BlackClock "0:00:13"]

1. Nf3 {[%clk 0:03:00]}  d5 {[%clk 0:02:41]} 2. d4 {[%clk 0:03:00]}  Nf6 {[%clk 0:02:39]} 3. c4 {[%clk 0:03:01]}  c6 {[%clk 0:02:38]} 4. cxd5 {[%clk 0:03:01]}  cxd5 {[%clk 0:02:38]} 5. Nc3 {[%clk 0:03:02]}  Nc6 {[%clk 0:02:38]} 6. Bf4 {[%clk 0:03:02]}  a6 {[%clk 0:02:37]} 7. Rc1 {[%clk 0:03:01]}  Bf5 {[%clk 0:02:35]} 8. e3 {[%clk 0:03:02]}  e6 {[%clk 0:02:34]} 9. Be2 {[%clk 0:03:01]}  Bd6 {[%clk 0:02:33]} 10. Bxd6 {[%clk 0:03:01]}  Qxd6 {[%clk 0:02:33]} 11. O-O {[%clk 0:03:01]}  O-O {[%clk 0:02:32]} 12. Na4 {[%clk 0:02:51]}  Rab8 {[%clk 0:02:32]} 13. a3 {[%clk 0:02:50]}  Nd7 {[%clk 0:02:29]} 14. b4 {[%clk 0:02:46]}  Rfc8 {[%clk 0:02:28]} 15. Qb3 {[%clk 0:02:39]}  a5 {[%clk 0:02:25]} 16. Nc5 {[%clk 0:02:23]}  axb4 {[%clk 0:02:21]} 17. axb4 {[%clk 0:02:23]}  Ne7 {[%clk 0:02:13]} 18. Rc3 {[%clk 0:02:17]}  b6 {[%clk 0:02:11]} 19. Nxd7 {[%clk 0:02:12]}  Rxc3 {[%clk 0:02:11]} 20. Qxc3 {[%clk 0:02:06]}  Qxd7 {[%clk 0:02:11]} 21. Ne5 {[%clk 0:02:03]}  Qd6 {[%clk 0:02:08]} 22. Rc1 {[%clk 0:01:59]}  f6 {[%clk 0:02:07]} 23. Qc7 {[%clk 0:01:57]}  Qxc7 {[%clk 0:02:01]} 24. Rxc7 {[%clk 0:01:58]}  fxe5 {[%clk 0:01:59]} 25. Rxe7 {[%clk 0:01:57]}  exd4 {[%clk 0:01:58]} 26. exd4 {[%clk 0:01:58]}  Kf8 {[%clk 0:01:55]} 27. Rc7 {[%clk 0:01:31]}  Ra8 {[%clk 0:01:55]} 28. g4 {[%clk 0:01:26]}  Be4 {[%clk 0:01:54]} 29. f3 {[%clk 0:01:23]}  Ra2 {[%clk 0:01:53]} 30. Kf1 {[%clk 0:01:08]}  Bg6 {[%clk 0:01:43]} 31. Rb7 {[%clk 0:01:08]}  Rd2 {[%clk 0:01:37]} 32. Rxb6 {[%clk 0:01:08]}  Ke7 {[%clk 0:01:27]} 33. Rb7+ {[%clk 0:01:03]}  Kf6 {[%clk 0:01:25]} 34. Kf2 {[%clk 0:00:45]}  Bd3 {[%clk 0:01:20]} 35. Ke3 {[%clk 0:00:45]}  Rxe2+ {[%clk 0:01:20]} 36. Kxd3 {[%clk 0:00:45]}  Rxh2 {[%clk 0:01:19]} 37. Ke3 {[%clk 0:00:31]}  Rb2 {[%clk 0:01:14]} 38. g5+ {[%clk 0:00:28]}  Kg6 {[%clk 0:01:07]} 39. Re7 {[%clk 0:00:27]}  Rxb4 {[%clk 0:01:02]} 40. Rxe6+ {[%clk 0:00:27]}  Kxg5 {[%clk 0:01:02]} 41. Re5+ {[%clk 0:00:27]}  Kf6 {[%clk 0:01:02]} 42. Rxd5 {[%clk 0:00:28]}  g5 {[%clk 0:01:00]} 43. Ke4 {[%clk 0:00:27]}  Rb6 {[%clk 0:00:55]} 44. Rc5 {[%clk 0:00:22]}  Re6+ {[%clk 0:00:54]} 45. Kd3 {[%clk 0:00:22]}  h5 {[%clk 0:00:53]} 46. d5 {[%clk 0:00:22]}  Re1 {[%clk 0:00:51]} 47. Kd4 {[%clk 0:00:21]}  h4 {[%clk 0:00:50]} 48. Rc6+ {[%clk 0:00:16]}  Kf5 {[%clk 0:00:48]} 49. Rh6 {[%clk 0:00:16]}  Rd1+ {[%clk 0:00:44]} 50. Kc5 {[%clk 0:00:16]}  Ke5 {[%clk 0:00:43]} 51. d6 {[%clk 0:00:13]}  Rd3 {[%clk 0:00:31]} 52. Rg6 {[%clk 0:00:09]}  Kf5 {[%clk 0:00:30]} 53. Rg8 {[%clk 0:00:08]}  h3 {[%clk 0:00:24]} 54. Kc6 {[%clk 0:00:06]}  h2 {[%clk 0:00:19]} 55. Rh8 {[%clk 0:00:06]}  Rd2 {[%clk 0:00:17]} 56. d7 {[%clk 0:00:05]}  Rc2+ {[%clk 0:00:13]} 57. Kd6 {[%clk 0:00:06]}  Rd2+ {[%clk 0:00:13]} 58. Ke7 {[%clk 0:00:06]}  Re2+ {[%clk 0:00:13]} 59. Kf7 {[%clk 0:00:06]}  Rd2 {[%clk 0:00:12]} 60. Ke7 {[%clk 0:00:07]}  Re2+ {[%clk 0:00:12]} 61. Kf7 {[%clk 0:00:07]}  Rd2 {[%clk 0:00:13]} 62. Ke7 {[%clk 0:00:08]} 1/2-1/2


[Site "https://www.chess.com"]

[Event "Titled Tuesday Blitz April 26 Late 2022"]
[White "Janik, Igor"]
[Black "Petrovic, Aleksa"]
[WhiteFideId "1159259"]
[BlackFideId "967629"]
[WhiteElo "2437"]
[BlackElo "2198"]
[Result "1-0"]
[Round "08"]
[TimeControl "180+1"]
[Date "2022.04.26"]
[WhiteClock "0:00:22"]
[BlackClock "0:00:02"]

1. e4 {[%clk 0:03:00]}  c5 {[%clk 0:02:59]} 2. Nf3 {[%clk 0:03:00]}  e6 {[%clk 0:02:59]} 3. g3 {[%clk 0:02:59]}  b6 {[%clk 0:02:55]} 4. Bg2 {[%clk 0:02:58]}  Bb7 {[%clk 0:02:55]} 5. Qe2 {[%clk 0:02:58]}  d6 {[%clk 0:02:54]} 6. O-O {[%clk 0:02:58]}  Be7 {[%clk 0:02:53]} 7. a4 {[%clk 0:02:47]}  Nf6 {[%clk 0:02:39]} 8. d3 {[%clk 0:02:47]}  O-O {[%clk 0:02:39]} 9. b3 {[%clk 0:02:46]}  Nfd7 {[%clk 0:02:37]} 10. Bb2 {[%clk 0:02:42]}  Bf6 {[%clk 0:02:37]} 11. c3 {[%clk 0:02:42]}  Nc6 {[%clk 0:02:32]} 12. d4 {[%clk 0:02:38]}  cxd4 {[%clk 0:02:29]} 13. cxd4 {[%clk 0:02:38]}  Nb4 {[%clk 0:02:26]} 14. Na3 {[%clk 0:02:34]}  Ba6 {[%clk 0:02:16]} 15. Nb5 {[%clk 0:02:35]}  d5 {[%clk 0:02:02]} 16. e5 {[%clk 0:02:30]}  Be7 {[%clk 0:02:02]} 17. Rfc1 {[%clk 0:02:30]}  Rc8 {[%clk 0:01:59]} 18. Qd2 {[%clk 0:02:28]}  Rxc1+ {[%clk 0:01:55]} 19. Rxc1 {[%clk 0:02:28]}  Qb8 {[%clk 0:01:29]} 20. Ba3 {[%clk 0:02:25]}  Nc6 {[%clk 0:01:29]} 21. Bxe7 {[%clk 0:02:15]}  Nxe7 {[%clk 0:01:30]} 22. Nd6 {[%clk 0:02:15]}  Nc8 {[%clk 0:01:26]} 23. Nxc8 {[%clk 0:02:11]}  Rxc8 {[%clk 0:01:26]} 24. Ne1 {[%clk 0:02:10]}  Rxc1 {[%clk 0:01:19]} 25. Qxc1 {[%clk 0:02:09]}  Qc8 {[%clk 0:01:20]} 26. Qxc8+ {[%clk 0:02:08]}  Bxc8 {[%clk 0:01:21]} 27. Bf1 {[%clk 0:02:08]}  Nb8 {[%clk 0:01:19]} 28. f4 {[%clk 0:02:01]}  a5 {[%clk 0:01:06]} 29. Kf2 {[%clk 0:01:57]}  Ba6 {[%clk 0:01:05]} 30. Bb5 {[%clk 0:01:55]}  Bxb5 {[%clk 0:01:04]} 31. axb5 {[%clk 0:01:55]}  h5 {[%clk 0:00:52]} 32. Nd3 {[%clk 0:01:45]}  Kh7 {[%clk 0:00:48]} 33. Ke3 {[%clk 0:01:42]}  Kg6 {[%clk 0:00:48]} 34. h3 {[%clk 0:01:42]}  Kf5 {[%clk 0:00:45]} 35. Kf3 {[%clk 0:01:39]}  g5 {[%clk 0:00:37]} 36. g4+ {[%clk 0:01:36]}  hxg4+ {[%clk 0:00:36]} 37. hxg4+ {[%clk 0:01:36]}  Kg6 {[%clk 0:00:37]} 38. Nb2 {[%clk 0:00:58]}  gxf4 {[%clk 0:00:35]} 39. Kxf4 {[%clk 0:00:58]}  Nd7 {[%clk 0:00:34]} 40. Na4 {[%clk 0:00:59]}  Kh6 {[%clk 0:00:33]} 41. Kf3 {[%clk 0:00:56]}  Kg5 {[%clk 0:00:31]} 42. Kg3 {[%clk 0:00:57]}  Kg6 {[%clk 0:00:31]} 43. Kh4 {[%clk 0:00:56]}  Kh6 {[%clk 0:00:31]} 44. g5+ {[%clk 0:00:55]}  Kg6 {[%clk 0:00:31]} 45. Kg4 {[%clk 0:00:56]}  Kg7 {[%clk 0:00:29]} 46. Kh5 {[%clk 0:00:56]}  Kh7 {[%clk 0:00:29]} 47. Nb2 {[%clk 0:00:47]}  Kg7 {[%clk 0:00:25]} 48. Nd3 {[%clk 0:00:46]}  Kh7 {[%clk 0:00:20]} 49. Nf4 {[%clk 0:00:44]}  Nf8 {[%clk 0:00:21]} 50. Kg4 {[%clk 0:00:41]}  Kg8 {[%clk 0:00:17]} 51. Nh5 {[%clk 0:00:34]}  Nd7 {[%clk 0:00:17]} 52. g6 {[%clk 0:00:27]}  fxg6 {[%clk 0:00:16]} 53. Nf4 {[%clk 0:00:28]}  Kf7 {[%clk 0:00:16]} 54. Kg5 {[%clk 0:00:28]}  Nf8 {[%clk 0:00:16]} 55. Kh6 {[%clk 0:00:28]}  g5 {[%clk 0:00:11]} 56. Kxg5 {[%clk 0:00:28]}  Kg7 {[%clk 0:00:10]} 57. Kh5 {[%clk 0:00:25]}  Kh7 {[%clk 0:00:09]} 58. Nh3 {[%clk 0:00:23]}  Kg8 {[%clk 0:00:06]} 59. Kh6 {[%clk 0:00:21]}  Kf7 {[%clk 0:00:06]} 60. Ng5+ {[%clk 0:00:22]}  Ke7 {[%clk 0:00:07]} 61. Kg7 {[%clk 0:00:20]}  Nd7 {[%clk 0:00:06]} 62. Nf7 {[%clk 0:00:20]}  Nf8 {[%clk 0:00:04]} 63. Nd6 {[%clk 0:00:20]}  Nd7 {[%clk 0:00:04]} 64. Kg8 {[%clk 0:00:20]}  Nb8 {[%clk 0:00:03]} 65. Nc8+ {[%clk 0:00:20]}  Kd7 {[%clk 0:00:02]} 66. Nxb6+ {[%clk 0:00:21]}  Kc7 {[%clk 0:00:03]} 67. Na4 {[%clk 0:00:21]}  Nd7 {[%clk 0:00:03]} 68. Kf7 {[%clk 0:00:21]}  Nb6 {[%clk 0:00:02]} 69. Kxe6 {[%clk 0:00:21]}  Nxa4 {[%clk 0:00:02]} 70. bxa4 {[%clk 0:00:22]} 1-0


[Site "https://www.chess.com"]

[Event "Titled Tuesday Blitz April 26 Late 2022"]
[White "Jobava, Baadur"]
[Black "Melkumyan, Hrant"]
[WhiteFideId "13601520"]
[BlackFideId "13302485"]
[WhiteElo "2617"]
[BlackElo "2604"]
[Result "0-1"]
[Round "08"]
[TimeControl "180+1"]
[Date "2022.04.26"]
[WhiteClock "0:00:03"]
[BlackClock "0:00:18"]

1. b3 {[%clk 0:02:59]}  d5 {[%clk 0:02:55]} 2. Bb2 {[%clk 0:02:59]}  Nf6 {[%clk 0:02:55]} 3. g3 {[%clk 0:02:56]}  g6 {[%clk 0:02:53]} 4. Bg2 {[%clk 0:02:56]}  Bg7 {[%clk 0:02:53]} 5. c4 {[%clk 0:02:55]}  c6 {[%clk 0:02:50]} 6. Nf3 {[%clk 0:02:55]}  O-O {[%clk 0:02:49]} 7. O-O {[%clk 0:02:56]}  Bg4 {[%clk 0:02:48]} 8. d3 {[%clk 0:02:56]}  Nbd7 {[%clk 0:02:45]} 9. Nbd2 {[%clk 0:02:56]}  a5 {[%clk 0:02:43]} 10. Rc1 {[%clk 0:02:54]}  Bxf3 {[%clk 0:02:39]} 11. Nxf3 {[%clk 0:02:53]}  a4 {[%clk 0:02:39]} 12. b4 {[%clk 0:02:54]}  e6 {[%clk 0:02:34]} 13. a3 {[%clk 0:02:53]}  Ne8 {[%clk 0:02:31]} 14. d4 {[%clk 0:02:51]}  Nd6 {[%clk 0:02:29]} 15. Nd2 {[%clk 0:02:50]}  b5 {[%clk 0:02:25]} 16. c5 {[%clk 0:02:47]}  Nc4 {[%clk 0:02:20]} 17. Nxc4 {[%clk 0:02:47]}  bxc4 {[%clk 0:02:21]} 18. e4 {[%clk 0:02:44]}  Nf6 {[%clk 0:02:08]} 19. e5 {[%clk 0:02:41]}  Ne8 {[%clk 0:02:09]} 20. f4 {[%clk 0:02:38]}  Nc7 {[%clk 0:02:08]} 21. h4 {[%clk 0:02:32]}  f5 {[%clk 0:02:00]} 22. exf6 {[%clk 0:02:31]}  Qxf6 {[%clk 0:01:59]} 23. Rc2 {[%clk 0:02:28]}  Nb5 {[%clk 0:01:59]} 24. h5 {[%clk 0:02:17]}  Qf5 {[%clk 0:01:54]} 25. hxg6 {[%clk 0:02:13]}  Qxg6 {[%clk 0:01:53]} 26. g4 {[%clk 0:01:18]}  Rf7 {[%clk 0:01:39]} 27. Rcf2 {[%clk 0:00:51]}  Raf8 {[%clk 0:01:38]} 28. Qxa4 {[%clk 0:00:25]}  c3 {[%clk 0:01:34]} 29. Bc1 {[%clk 0:00:24]}  Bxd4 {[%clk 0:01:34]} 30. Qa6 {[%clk 0:00:22]}  Qxg4 {[%clk 0:01:30]} 31. Qxc6 {[%clk 0:00:21]}  Rg7 {[%clk 0:01:27]} 32. Kh1 {[%clk 0:00:17]}  Bxf2 {[%clk 0:01:22]} 33. Rxf2 {[%clk 0:00:17]}  Nd4 {[%clk 0:01:21]} 34. Qd6 {[%clk 0:00:17]}  Qh5+ {[%clk 0:01:11]} 35. Kg1 {[%clk 0:00:17]}  Qd1+ {[%clk 0:01:11]} 36. Kh2 {[%clk 0:00:16]}  Qxc1 {[%clk 0:01:06]} 37. c6 {[%clk 0:00:16]}  Qd1 {[%clk 0:00:59]} 38. c7 {[%clk 0:00:16]}  Qh5+ {[%clk 0:00:59]} 39. Bh3 {[%clk 0:00:15]}  Qe8 {[%clk 0:00:52]} 40. b5 {[%clk 0:00:13]}  Nf5 {[%clk 0:00:46]} 41. Qe5 {[%clk 0:00:11]}  Qc8 {[%clk 0:00:27]} 42. b6 {[%clk 0:00:11]}  d4 {[%clk 0:00:28]} 43. Bf1 {[%clk 0:00:08]}  Ne3 {[%clk 0:00:24]} 44. Bh3 {[%clk 0:00:07]}  Ng4+ {[%clk 0:00:24]} 45. Bxg4 {[%clk 0:00:07]}  Rxg4 {[%clk 0:00:25]} 46. b7 {[%clk 0:00:08]}  Qxb7 {[%clk 0:00:18]} 47. Qxe6+ {[%clk 0:00:08]}  Kh8 {[%clk 0:00:18]} 48. Qxg4 {[%clk 0:00:09]}  Qxc7 {[%clk 0:00:18]} 49. Rg2 {[%clk 0:00:06]}  Qxf4+ {[%clk 0:00:18]} 50. Qxf4 {[%clk 0:00:06]}  Rxf4 {[%clk 0:00:19]} 51. Kg3 {[%clk 0:00:07]}  Rf8 {[%clk 0:00:18]} 52. Rc2 {[%clk 0:00:06]}  Rc8 {[%clk 0:00:18]} 53. Rf2 {[%clk 0:00:03]}  c2 {[%clk 0:00:18]} 0-1


[Site "https://www.chess.com"]

[Event "Titled Tuesday Blitz April 26 Late 2022"]
[White "Keymer, Vincent"]
[Black "Babazada, Khazar"]
[WhiteFideId "12940690"]
[BlackFideId "13413554"]
[WhiteElo "2557"]
[BlackElo "2406"]
[Result "1-0"]
[Round "08"]
[TimeControl "180+1"]
[Date "2022.04.26"]
[WhiteClock "0:00:22"]
[BlackClock "0:00:11"]

1. Nf3 {[%clk 0:03:00]}  Nf6 {[%clk 0:03:00]} 2. c4 {[%clk 0:02:58]}  c5 {[%clk 0:03:00]} 3. Nc3 {[%clk 0:02:58]}  Nc6 {[%clk 0:03:00]} 4. g3 {[%clk 0:02:50]}  e5 {[%clk 0:02:59]} 5. Bg2 {[%clk 0:02:48]}  d6 {[%clk 0:02:59]} 6. O-O {[%clk 0:02:46]}  Be7 {[%clk 0:02:59]} 7. a3 {[%clk 0:02:42]}  O-O {[%clk 0:03:00]} 8. Rb1 {[%clk 0:02:39]}  Be6 {[%clk 0:03:00]} 9. d3 {[%clk 0:02:38]}  Qd7 {[%clk 0:03:00]} 10. Ng5 {[%clk 0:02:31]}  Bf5 {[%clk 0:02:59]} 11. b4 {[%clk 0:02:31]}  h6 {[%clk 0:02:56]} 12. Nge4 {[%clk 0:02:29]}  Rac8 {[%clk 0:02:12]} 13. b5 {[%clk 0:02:07]}  Nd4 {[%clk 0:02:08]} 14. Nxf6+ {[%clk 0:02:03]}  Bxf6 {[%clk 0:02:09]} 15. Nd5 {[%clk 0:02:03]}  Bd8 {[%clk 0:02:08]} 16. e3 {[%clk 0:02:02]}  Ne6 {[%clk 0:02:08]} 17. Bb2 {[%clk 0:01:59]}  Bh7 {[%clk 0:01:32]} 18. f4 {[%clk 0:01:55]}  exf4 {[%clk 0:01:09]} 19. gxf4 {[%clk 0:01:51]}  f5 {[%clk 0:01:07]} 20. Kh1 {[%clk 0:01:47]}  Bg6 {[%clk 0:01:05]} 21. Rg1 {[%clk 0:01:37]}  Kh7 {[%clk 0:01:05]} 22. Qf3 {[%clk 0:01:34]}  Qf7 {[%clk 0:01:02]} 23. Qg3 {[%clk 0:01:26]}  Bh5 {[%clk 0:01:00]} 24. e4 {[%clk 0:01:12]}  Nd4 {[%clk 0:00:39]} 25. Bxd4 {[%clk 0:01:08]}  cxd4 {[%clk 0:00:39]} 26. exf5 {[%clk 0:01:09]}  Kh8 {[%clk 0:00:39]} 27. Be4 {[%clk 0:01:06]}  Re8 {[%clk 0:00:36]} 28. Rbe1 {[%clk 0:00:59]}  a6 {[%clk 0:00:32]} 29. Qh3 {[%clk 0:00:31]}  axb5 {[%clk 0:00:30]} 30. f6 {[%clk 0:00:29]}  Bxf6 {[%clk 0:00:14]} 31. Qf5 {[%clk 0:00:22]}  Rxe4 {[%clk 0:00:11]} 32. Qxc8+ {[%clk 0:00:22]} 1-0


[Site "https://www.chess.com"]

[Event "Titled Tuesday Blitz April 26 Late 2022"]
[White "Kohler, Aran"]
[Black "Donatti, Alvaro"]
[WhiteFideId "1002856"]
[BlackFideId "3000303"]
[WhiteElo "2267"]
[BlackElo "2138"]
[Result "1-0"]
[Round "08"]
[TimeControl "180+1"]
[Date "2022.04.26"]
[WhiteClock "0:02:19"]
[BlackClock "0:02:20"]

1. e4 {[%clk 0:02:59]}  c5 {[%clk 0:02:59]} 2. Nf3 {[%clk 0:02:59]}  e6 {[%clk 0:02:59]} 3. c3 {[%clk 0:02:51]}  Nf6 {[%clk 0:02:57]} 4. e5 {[%clk 0:02:50]}  Nd5 {[%clk 0:02:57]} 5. d4 {[%clk 0:02:51]}  cxd4 {[%clk 0:02:55]} 6. cxd4 {[%clk 0:02:51]}  Nc6 {[%clk 0:02:55]} 7. Nc3 {[%clk 0:02:49]}  Nxc3 {[%clk 0:02:44]} 8. bxc3 {[%clk 0:02:49]}  d6 {[%clk 0:02:45]} 9. exd6 {[%clk 0:02:42]}  Bxd6 {[%clk 0:02:43]} 10. Bd3 {[%clk 0:02:41]}  Qa5 {[%clk 0:02:35]} 11. Bd2 {[%clk 0:02:40]}  Qh5 {[%clk 0:02:29]} 12. h3 {[%clk 0:02:34]}  O-O {[%clk 0:02:27]} 13. Ng5 {[%clk 0:02:21]}  h6 {[%clk 0:02:20]} 14. Qxh5 {[%clk 0:02:19]} 1-0


[Site "https://www.chess.com"]

[Event "Titled Tuesday Blitz April 26 Late 2022"]
[White "Korchmar, Vasiliy"]
[Black "Lehtosaari, Mauri"]
[WhiteFideId "24131750"]
[BlackFideId "501999"]
[WhiteElo "2370"]
[BlackElo "2545"]
[Result "1-0"]
[Round "08"]
[TimeControl "180+1"]
[Date "2022.04.26"]
[WhiteClock "0:00:35"]
[BlackClock "0:00:16"]

1. e4 {[%clk 0:02:59]}  d5 {[%clk 0:02:59]} 2. exd5 {[%clk 0:02:59]}  Qxd5 {[%clk 0:02:59]} 3. Nc3 {[%clk 0:02:59]}  Qe5+ {[%clk 0:02:59]} 4. Be2 {[%clk 0:02:56]}  c6 {[%clk 0:02:58]} 5. Nf3 {[%clk 0:02:55]}  Qc7 {[%clk 0:02:58]} 6. d4 {[%clk 0:02:54]}  Bf5 {[%clk 0:02:57]} 7. Ne5 {[%clk 0:02:41]}  e6 {[%clk 0:02:47]} 8. g4 {[%clk 0:02:34]}  Bg6 {[%clk 0:02:47]} 9. h4 {[%clk 0:02:34]}  f6 {[%clk 0:02:47]} 10. Nxg6 {[%clk 0:02:32]}  hxg6 {[%clk 0:02:47]} 11. Bd3 {[%clk 0:02:29]}  f5 {[%clk 0:02:19]} 12. Qe2 {[%clk 0:02:23]}  Qe7 {[%clk 0:02:11]} 13. Bf4 {[%clk 0:02:07]}  Nf6 {[%clk 0:02:08]} 14. f3 {[%clk 0:01:51]}  Nbd7 {[%clk 0:01:48]} 15. O-O-O {[%clk 0:01:50]}  Nb6 {[%clk 0:01:41]} 16. Rde1 {[%clk 0:01:47]}  Kf7 {[%clk 0:01:32]} 17. Bg5 {[%clk 0:01:31]}  Qd6 {[%clk 0:01:21]} 18. h5 {[%clk 0:01:26]}  gxh5 {[%clk 0:01:14]} 19. gxf5 {[%clk 0:01:23]}  Re8 {[%clk 0:01:08]} 20. fxe6+ {[%clk 0:00:44]}  Rxe6 {[%clk 0:01:02]} 21. Qg2 {[%clk 0:00:43]}  Rxe1+ {[%clk 0:00:54]} 22. Rxe1 {[%clk 0:00:41]}  Nbd5 {[%clk 0:00:48]} 23. Bg6+ {[%clk 0:00:41]}  Kg8 {[%clk 0:00:45]} 24. Ne4 {[%clk 0:00:41]}  Qd8 {[%clk 0:00:25]} 25. c4 {[%clk 0:00:41]}  Be7 {[%clk 0:00:20]} 26. cxd5 {[%clk 0:00:40]}  Nxd5 {[%clk 0:00:18]} 27. Bxe7 {[%clk 0:00:37]}  Qxe7 {[%clk 0:00:19]} 28. Nf6+ {[%clk 0:00:36]}  Qxf6 {[%clk 0:00:16]} 29. Re8+ {[%clk 0:00:35]} 1-0


[Site "https://www.chess.com"]